[Event "Early-Titled-Tuesday-Blitz-May-28-2024"]
[Site "Chess.com"]
[Date "2024.05.28"]
[Round "1"]
[White "RedFirePanda"]
[Black "HamedWafa4"]
[Result "0-1"]
[WhiteElo "2430"]
[BlackElo "2768"]
[TimeControl "180+1"]
[EndTime "8:07:54 PDT"]
[Termination "HamedWafa4 won by resignation"]

1. d4 {[%clk 0:03:00.9]} 1... Nf6 {[%clk 0:02:49.2]} 2. Bf4 {[%clk 0:03:00.7]}
2... g6 {[%clk 0:02:46]} 3. e3 {[%clk 0:02:56.9]} 3... Bg7 {[%clk 0:02:45.9]} 4.
Nd2 {[%clk 0:02:56]} 4... O-O {[%clk 0:02:45.2]} 5. Ngf3 {[%clk 0:02:54.9]} 5...
c5 {[%clk 0:02:44.5]} 6. c3 {[%clk 0:02:54.8]} 6... Nc6 {[%clk 0:02:42.3]} 7. h3
{[%clk 0:02:54.5]} 7... d6 {[%clk 0:02:40.1]} 8. Be2 {[%clk 0:02:53.9]} 8...
cxd4 {[%clk 0:02:39.9]} 9. exd4 {[%clk 0:02:53.7]} 9... Nd5 {[%clk 0:02:38.4]}
10. Bg3 {[%clk 0:02:51.9]} 10... e5 {[%clk 0:02:38.4]} 11. dxe5 {[%clk
0:02:46.6]} 11... dxe5 {[%clk 0:02:38.3]} 12. O-O {[%clk 0:02:43.3]} 12... Re8
{[%clk 0:02:19.6]} 13. Bc4 {[%clk 0:02:38]} 13... Nb6 {[%clk 0:02:08.9]} 14. Bb3
{[%clk 0:02:17.3]} 14... e4 {[%clk 0:02:07]} 15. Ne1 {[%clk 0:02:16.8]} 15...
Be6 {[%clk 0:01:45.5]} 16. Nc2 {[%clk 0:02:06.9]} 16... Bxb3 {[%clk 0:01:39]}
17. axb3 {[%clk 0:01:59.8]} 17... f5 {[%clk 0:01:38.3]} 18. Nc4 {[%clk
0:01:52.2]} 18... Nxc4 {[%clk 0:01:25.1]} 19. bxc4 {[%clk 0:01:51.4]} 19... Ne5
{[%clk 0:01:25.4]} 20. Ne3 {[%clk 0:01:29.8]} 20... Nd3 {[%clk 0:01:23.3]} 21.
Nd5 {[%clk 0:01:08.2]} 21... Bh6 {[%clk 0:00:46.3]} 22. Bc7 {[%clk 0:00:45.4]}
22... Qg5 {[%clk 0:00:33.9]} 23. Qb3 {[%clk 0:00:41.9]} 23... Nc5 {[%clk
0:00:21.8]} 24. Qb4 {[%clk 0:00:33.5]} 24... Bf8 {[%clk 0:00:20.3]} 25. Qb5
{[%clk 0:00:21.4]} 25... a6 {[%clk 0:00:14.2]} 26. Qb6 {[%clk 0:00:21.6]} 26...
Re6 {[%clk 0:00:10.5]} 27. Qa5 {[%clk 0:00:16.6]} 27... Rc8 {[%clk 0:00:10.8]}
28. Bf4 {[%clk 0:00:16.5]} 28... Qd8 {[%clk 0:00:10.6]} 29. Qa2 {[%clk
0:00:16.4]} 29... Nd3 {[%clk 0:00:08.3]} 30. Bh2 {[%clk 0:00:16.7]} 30... g5
{[%clk 0:00:06.1]} 31. Ne3 {[%clk 0:00:16.8]} 31... f4 {[%clk 0:00:05.5]} 32. c5
{[%clk 0:00:17.4]} 32... Nxc5 {[%clk 0:00:03.4]} 33. Ng4 {[%clk 0:00:09]} 33...
Qe8 {[%clk 0:00:00.8]} 34. Ne5 {[%clk 0:00:07.9]} 34... Qe7 {[%clk 0:00:01]} 35.
Nc4 {[%clk 0:00:06.7]} 35... Nd3 {[%clk 0:00:01]} 36. Rfd1 {[%clk 0:00:06.5]}
36... Qf7 {[%clk 0:00:01.6]} 37. Nd2 {[%clk 0:00:07]} 37... Rec6 {[%clk
0:00:01.9]} 38. Nb3 {[%clk 0:00:06.7]} 38... Nc5 {[%clk 0:00:01.8]} 39. Nd4
{[%clk 0:00:05.5]} 39... Qxa2 {[%clk 0:00:02.7]} 40. Rxa2 {[%clk 0:00:06]} 40...
R6c7 {[%clk 0:00:03.3]} 41. Raa1 {[%clk 0:00:06.5]} 41... Bg7 {[%clk 0:00:03.6]}
42. g3 {[%clk 0:00:07]} 42... Bxd4 {[%clk 0:00:04.2]} 43. cxd4 {[%clk
0:00:06.9]} 43... Nb3 {[%clk 0:00:04.9]} 44. gxf4 {[%clk 0:00:06.8]} 44... Nxa1
{[%clk 0:00:05.1]} 45. fxg5 {[%clk 0:00:06]} 45... Rc1 {[%clk 0:00:06]} 46. Rxc1
{[%clk 0:00:06.2]} 46... Rxc1+ {[%clk 0:00:06.9]} 47. Kg2 {[%clk 0:00:06.8]}
47... Nc2 {[%clk 0:00:07.6]} 48. d5 {[%clk 0:00:07.2]} 48... Ne1+ {[%clk
0:00:08.5]} 49. Kg3 {[%clk 0:00:07.2]} 49... Nf3 {[%clk 0:00:09.4]} 50. d6
{[%clk 0:00:06.2]} 50... Nxh2 {[%clk 0:00:10]} 51. d7 {[%clk 0:00:06.8]} 51...
Rd1 {[%clk 0:00:10.9]} 52. Kxh2 {[%clk 0:00:06.6]} 52... Rxd7 {[%clk 0:00:11.6]}
53. Kg3 {[%clk 0:00:07.3]} 53... Rd2 {[%clk 0:00:12.5]} 54. Kf4 {[%clk
0:00:07.9]} 54... Rxb2 {[%clk 0:00:13.4]} 55. Kxe4 {[%clk 0:00:08.7]} 55... a5
{[%clk 0:00:14.1]} 56. Kd5 {[%clk 0:00:09.4]} 56... a4 {[%clk 0:00:14.8]} 0-1

[Event "Early-Titled-Tuesday-Blitz-May-28-2024"]
[Site "Chess.com"]
[Date "2024.05.28"]
[Round "1"]
[White "Massakru"]
[Black "Tolyanius"]
[Result "1-0"]
[WhiteElo "2382"]
[BlackElo "2649"]
[TimeControl "180+1"]
[EndTime "8:07:55 PDT"]
[Termination "Massakru won by checkmate"]

1. e4 {[%clk 0:03:00.9]} 1... e5 {[%clk 0:03:00.3]} 2. Nf3 {[%clk 0:03:00]} 2...
Nc6 {[%clk 0:03:01]} 3. d4 {[%clk 0:02:59]} 3... exd4 {[%clk 0:03:00.9]} 4. Nxd4
{[%clk 0:02:59.9]} 4... Bc5 {[%clk 0:03:01]} 5. Nb3 {[%clk 0:02:57.2]} 5... Bb6
{[%clk 0:03:00.9]} 6. Nc3 {[%clk 0:02:56.3]} 6... Nge7 {[%clk 0:03:01]} 7. Qe2
{[%clk 0:02:53]} 7... O-O {[%clk 0:03:00.9]} 8. Be3 {[%clk 0:02:47.6]} 8... f5
{[%clk 0:03:01.3]} 9. O-O-O {[%clk 0:02:41.9]} 9... d6 {[%clk 0:02:58]} 10. f3
{[%clk 0:02:33.4]} 10... f4 {[%clk 0:02:54.1]} 11. Bxb6 {[%clk 0:02:31.2]} 11...
axb6 {[%clk 0:02:54.1]} 12. Kb1 {[%clk 0:02:27.8]} 12... Be6 {[%clk 0:02:50.9]}
13. g3 {[%clk 0:02:25]} 13... Ng6 {[%clk 0:02:50]} 14. g4 {[%clk 0:02:18.2]}
14... Qh4 {[%clk 0:02:29.3]} 15. Nb5 {[%clk 0:02:10.3]} 15... Rf7 {[%clk
0:02:24.7]} 16. a3 {[%clk 0:02:07]} 16... Bxb3 {[%clk 0:02:19.5]} 17. cxb3
{[%clk 0:02:06.6]} 17... Nge5 {[%clk 0:02:20.2]} 18. Nd4 {[%clk 0:01:47.5]}
18... Nxd4 {[%clk 0:02:16.6]} 19. Rxd4 {[%clk 0:01:48.4]} 19... h5 {[%clk
0:02:11.6]} 20. gxh5 {[%clk 0:01:43.7]} 20... Qxh5 {[%clk 0:02:12.5]} 21. Bg2
{[%clk 0:01:39.9]} 21... Rf6 {[%clk 0:01:59]} 22. Qc2 {[%clk 0:01:37.1]} 22...
Rc8 {[%clk 0:01:44.7]} 23. Rhd1 {[%clk 0:01:26.7]} 23... Qh6 {[%clk 0:01:11.7]}
24. h3 {[%clk 0:01:26.3]} 24... Kh7 {[%clk 0:01:11.6]} 25. Ka2 {[%clk
0:01:20.4]} 25... Rg6 {[%clk 0:01:11.8]} 26. b4 {[%clk 0:01:13.9]} 26... Qg5
{[%clk 0:01:11.4]} 27. R1d2 {[%clk 0:01:01.1]} 27... Qe7 {[%clk 0:01:09.3]} 28.
h4 {[%clk 0:00:52.7]} 28... Qe6+ {[%clk 0:01:01]} 29. b3 {[%clk 0:00:50]} 29...
Rg3 {[%clk 0:01:00.8]} 30. Bh1 {[%clk 0:00:41.6]} 30... Kh6 {[%clk 0:00:53]} 31.
Rd5 {[%clk 0:00:32.2]} 31... Nxf3 {[%clk 0:00:23.1]} 32. Bxf3 {[%clk 0:00:31.7]}
32... Rxf3 {[%clk 0:00:24]} 33. Rg2 {[%clk 0:00:22.2]} 33... Rg3 {[%clk
0:00:22.7]} 34. Rxg3 {[%clk 0:00:21.7]} 34... fxg3 {[%clk 0:00:23.6]} 35. Qd2+
{[%clk 0:00:17.2]} 35... Kh7 {[%clk 0:00:23.9]} 36. Rh5+ {[%clk 0:00:12.9]}
36... Kg8 {[%clk 0:00:23.6]} 37. Rg5 {[%clk 0:00:12.1]} 37... Rf8 {[%clk
0:00:20.3]} 38. Rxg3 {[%clk 0:00:09.9]} 38... Qxe4 {[%clk 0:00:20.4]} 39. Qb2
{[%clk 0:00:07.7]} 39... Rf7 {[%clk 0:00:20.5]} 40. h5 {[%clk 0:00:07.5]} 40...
Qe1 {[%clk 0:00:20.4]} 41. Rg2 {[%clk 0:00:05.2]} 41... Qf1 {[%clk 0:00:20.6]}
42. h6 {[%clk 0:00:04.9]} 42... Qf6 {[%clk 0:00:18.1]} 43. Qxf6 {[%clk
0:00:03.7]} 43... Rxf6 {[%clk 0:00:18.8]} 44. Rxg7+ {[%clk 0:00:04]} 44... Kf8
{[%clk 0:00:19.2]} 45. Rxc7 {[%clk 0:00:04.7]} 45... d5 {[%clk 0:00:19.5]} 46.
Rxb7 {[%clk 0:00:04.1]} 46... Rf2+ {[%clk 0:00:20.3]} 47. Kb1 {[%clk 0:00:04]}
47... Rf1+ {[%clk 0:00:20.6]} 48. Kc2 {[%clk 0:00:04]} 48... Rf2+ {[%clk
0:00:21.5]} 49. Kc3 {[%clk 0:00:04]} 49... Rh2 {[%clk 0:00:22.4]} 50. h7 {[%clk
0:00:04.1]} 50... Ke8 {[%clk 0:00:22.5]} 51. h8=Q+ {[%clk 0:00:04]} 51... Rxh8
{[%clk 0:00:22.1]} 52. Rb8+ {[%clk 0:00:04.5]} 52... Kd7 {[%clk 0:00:22.8]} 53.
Rxh8 {[%clk 0:00:05.4]} 53... Kc6 {[%clk 0:00:23.6]} 54. Kd4 {[%clk 0:00:05.9]}
54... Kb5 {[%clk 0:00:24.5]} 55. Kxd5 {[%clk 0:00:05.3]} 55... Ka6 {[%clk
0:00:25.4]} 56. Kc4 {[%clk 0:00:05.4]} 56... b5+ {[%clk 0:00:25.8]} 57. Kc5
{[%clk 0:00:05.4]} 57... Ka7 {[%clk 0:00:26.7]} 58. Rh6 {[%clk 0:00:05.7]} 58...
Kb7 {[%clk 0:00:27.1]} 59. Kxb5 {[%clk 0:00:06.6]} 59... Ka7 {[%clk 0:00:27.7]}
60. a4 {[%clk 0:00:07.5]} 60... Ka8 {[%clk 0:00:28.4]} 61. a5 {[%clk 0:00:08.3]}
61... Ka7 {[%clk 0:00:29.3]} 62. Ka4 {[%clk 0:00:08.7]} 62... Kb8 {[%clk
0:00:30.2]} 63. b5 {[%clk 0:00:09.6]} 63... Kb7 {[%clk 0:00:30.9]} 64. a6+
{[%clk 0:00:10]} 64... Kc7 {[%clk 0:00:31.8]} 65. Ka5 {[%clk 0:00:10.4]} 65...
Kc8 {[%clk 0:00:32]} 66. Rh7 {[%clk 0:00:10.3]} 66... Kb8 {[%clk 0:00:32.2]} 67.
b6 {[%clk 0:00:10.8]} 67... Ka8 {[%clk 0:00:33.1]} 68. Rh8# {[%clk 0:00:11.1]}
1-0

[Event "Early-Titled-Tuesday-Blitz-May-28-2024"]
[Site "Chess.com"]
[Date "2024.05.28"]
[Round "1"]
[White "h4parah5"]
[Black "jaskol95"]
[Result "1-0"]
[WhiteElo "3016"]
[BlackElo "2530"]
[TimeControl "180+1"]
[EndTime "8:07:58 PDT"]
[Termination "h4parah5 won by checkmate"]

1. Nf3 {[%clk 0:03:00.9]} 1... d5 {[%clk 0:02:59.2]} 2. e3 {[%clk 0:03:00.3]}
2... Nf6 {[%clk 0:02:58.5]} 3. c4 {[%clk 0:03:00.4]} 3... c6 {[%clk 0:02:58.3]}
4. Qc2 {[%clk 0:02:59.4]} 4... e6 {[%clk 0:02:56]} 5. b3 {[%clk 0:02:57.9]} 5...
b6 {[%clk 0:02:55.8]} 6. Bb2 {[%clk 0:02:57.2]} 6... Bb7 {[%clk 0:02:56.4]} 7.
d4 {[%clk 0:02:56.4]} 7... Nbd7 {[%clk 0:02:56.2]} 8. Nbd2 {[%clk 0:02:52.6]}
8... Be7 {[%clk 0:02:56]} 9. Bd3 {[%clk 0:02:51.9]} 9... h6 {[%clk 0:02:55.9]}
10. O-O {[%clk 0:02:49.5]} 10... Rc8 {[%clk 0:02:55.7]} 11. Ne5 {[%clk
0:02:47.6]} 11... c5 {[%clk 0:02:38.5]} 12. Rad1 {[%clk 0:02:41]} 12... cxd4
{[%clk 0:02:38.1]} 13. exd4 {[%clk 0:02:39.2]} 13... dxc4 {[%clk 0:02:37.8]} 14.
bxc4 {[%clk 0:02:34.8]} 14... Nxe5 {[%clk 0:02:28.8]} 15. dxe5 {[%clk
0:02:34.4]} 15... Nd7 {[%clk 0:02:29.4]} 16. Ne4 {[%clk 0:02:28.4]} 16... Qc7
{[%clk 0:02:25.2]} 17. Nd6+ {[%clk 0:02:16.5]} 17... Bxd6 {[%clk 0:02:23.1]} 18.
exd6 {[%clk 0:02:17.4]} 18... Qxd6 {[%clk 0:02:21.9]} 19. Bxg7 {[%clk
0:01:27.7]} 19... Rg8 {[%clk 0:01:34.7]} 20. Be4 {[%clk 0:01:27]} 20... Bxe4
{[%clk 0:01:22.4]} 21. Qxe4 {[%clk 0:01:26]} 21... Qc6 {[%clk 0:01:21.9]} 22.
Qh7 {[%clk 0:01:20.3]} 22... Ke7 {[%clk 0:01:14.8]} 23. g3 {[%clk 0:01:18.5]}
23... Qxc4 {[%clk 0:00:44.3]} 24. Qxh6 {[%clk 0:01:03.1]} 24... Qg4 {[%clk
0:00:40.3]} 25. Qd2 {[%clk 0:00:54.2]} 25... Qxg7 {[%clk 0:00:19.3]} 26. Qxd7+
{[%clk 0:00:53.2]} 26... Kf6 {[%clk 0:00:20]} 27. Qxa7 {[%clk 0:00:44.9]} 27...
Qg4 {[%clk 0:00:19.2]} 28. Qxb6 {[%clk 0:00:44.2]} 28... Rc4 {[%clk 0:00:18.6]}
29. Rc1 {[%clk 0:00:37.7]} 29... Re4 {[%clk 0:00:17.8]} 30. Rfe1 {[%clk
0:00:36.8]} 30... Rxe1+ {[%clk 0:00:17.7]} 31. Rxe1 {[%clk 0:00:36.2]} 31... Rc8
{[%clk 0:00:18]} 32. Qb3 {[%clk 0:00:27.6]} 32... Rc5 {[%clk 0:00:14.7]} 33. a4
{[%clk 0:00:25.8]} 33... Kg7 {[%clk 0:00:13.2]} 34. a5 {[%clk 0:00:24.7]} 34...
Qf5 {[%clk 0:00:08.8]} 35. a6 {[%clk 0:00:19.8]} 35... Ra5 {[%clk 0:00:09.3]}
36. Qb2+ {[%clk 0:00:19.1]} 36... Kh7 {[%clk 0:00:09]} 37. Ra1 {[%clk
0:00:18.3]} 37... Rb5 {[%clk 0:00:08.2]} 38. Qxb5 {[%clk 0:00:17.6]} 38... Qxb5
{[%clk 0:00:06.7]} 39. a7 {[%clk 0:00:17.8]} 39... f5 {[%clk 0:00:03.2]} 40.
a8=Q {[%clk 0:00:17.8]} 40... f4 {[%clk 0:00:04.1]} 41. Ra7+ {[%clk 0:00:17.2]}
41... Kg6 {[%clk 0:00:04.8]} 42. Qe4+ {[%clk 0:00:17.3]} 42... Kg5 {[%clk
0:00:05]} 43. Qxf4+ {[%clk 0:00:17.7]} 43... Kg6 {[%clk 0:00:05.7]} 44. Qe4+
{[%clk 0:00:17.4]} 44... Kg5 {[%clk 0:00:06.3]} 45. h4+ {[%clk 0:00:17.5]} 45...
Kh5 {[%clk 0:00:06.6]} 46. Qf3+ {[%clk 0:00:17.3]} 46... Kg6 {[%clk 0:00:07]}
47. Qg4+ {[%clk 0:00:17.7]} 47... Kf6 {[%clk 0:00:07.6]} 48. Qg5+ {[%clk
0:00:18.1]} 48... Qxg5 {[%clk 0:00:06.9]} 49. hxg5+ {[%clk 0:00:19]} 49... Kg6
{[%clk 0:00:07.7]} 50. Kg2 {[%clk 0:00:19.3]} 50... e5 {[%clk 0:00:08.3]} 51.
Ra5 {[%clk 0:00:18.9]} 51... e4 {[%clk 0:00:08.3]} 52. Re5 {[%clk 0:00:18.9]}
52... Kh5 {[%clk 0:00:08.8]} 53. Rxe4 {[%clk 0:00:19.2]} 53... Kg6 {[%clk
0:00:09.6]} 54. g4 {[%clk 0:00:19.4]} 54... Kxg5 {[%clk 0:00:09]} 55. Kg3 {[%clk
0:00:20.3]} 55... Kg6 {[%clk 0:00:09.4]} 56. f4 {[%clk 0:00:20.8]} 56... Kf6
{[%clk 0:00:10.3]} 57. f5 {[%clk 0:00:21.1]} 57... Kg5 {[%clk 0:00:10.3]} 58.
Rd4 {[%clk 0:00:21.4]} 58... Kf6 {[%clk 0:00:10.8]} 59. Kf4 {[%clk 0:00:21.9]}
59... Kg7 {[%clk 0:00:11.6]} 60. g5 {[%clk 0:00:22.8]} 60... Kh7 {[%clk
0:00:12.2]} 61. f6 {[%clk 0:00:23.1]} 61... Kg6 {[%clk 0:00:10]} 62. Re4 {[%clk
0:00:23.3]} 62... Kh7 {[%clk 0:00:10.5]} 63. Kf5 {[%clk 0:00:23.6]} 63... Kg8
{[%clk 0:00:10.8]} 64. g6 {[%clk 0:00:23.7]} 64... Kf8 {[%clk 0:00:11.7]} 65.
Re3 {[%clk 0:00:24]} 65... Kg8 {[%clk 0:00:12.1]} 66. Re8# {[%clk 0:00:24.1]}
1-0

[Event "Early-Titled-Tuesday-Blitz-May-28-2024"]
[Site "Chess.com"]
[Date "2024.05.28"]
[Round "1"]
[White "GMMikhailKazakov"]
[Black "Durarbayli"]
[Result "0-1"]
[WhiteElo "2506"]
[BlackElo "2903"]
[TimeControl "180+1"]
[EndTime "8:07:58 PDT"]
[Termination "Durarbayli won on time"]

1. d4 {[%clk 0:02:59.2]} 1... d5 {[%clk 0:02:59.3]} 2. c4 {[%clk 0:02:58.8]}
2... c6 {[%clk 0:03:00]} 3. Nf3 {[%clk 0:02:57.7]} 3... Nf6 {[%clk 0:03:00.2]}
4. Nc3 {[%clk 0:02:57.6]} 4... e6 {[%clk 0:03:00.3]} 5. Bg5 {[%clk 0:02:55.1]}
5... dxc4 {[%clk 0:02:59.7]} 6. a4 {[%clk 0:02:29.6]} 6... c5 {[%clk 0:02:57.8]}
7. e3 {[%clk 0:02:28.2]} 7... cxd4 {[%clk 0:02:55.6]} 8. Nxd4 {[%clk 0:02:21.5]}
8... e5 {[%clk 0:02:36.2]} 9. Ndb5 {[%clk 0:02:11.9]} 9... Be6 {[%clk
0:02:35.3]} 10. Qf3 {[%clk 0:01:41.6]} 10... Nc6 {[%clk 0:01:49.3]} 11. Rd1
{[%clk 0:01:09]} 11... Qa5 {[%clk 0:01:24.4]} 12. Bxf6 {[%clk 0:01:03.1]} 12...
gxf6 {[%clk 0:01:25.3]} 13. Qxf6 {[%clk 0:01:03]} 13... Rg8 {[%clk 0:01:25.6]}
14. Nd6+ {[%clk 0:00:54.2]} 14... Bxd6 {[%clk 0:01:25.5]} 15. Rxd6 {[%clk
0:00:54.6]} 15... Qb4 {[%clk 0:00:33.8]} 16. Rxe6+ {[%clk 0:00:04.8]} 16... fxe6
{[%clk 0:00:34.7]} 17. Qxe6+ {[%clk 0:00:05.1]} 17... Ne7 {[%clk 0:00:35]} 18.
Be2 {[%clk 0:00:04.9]} 18... Rxg2 {[%clk 0:00:25.7]} 19. Bh5+ {[%clk 0:00:04.6]}
19... Kd8 {[%clk 0:00:26.3]} 20. Ke2 {[%clk 0:00:04.8]} 20... Qxb2+ {[%clk
0:00:25.5]} 21. Kf3 {[%clk 0:00:04.9]} 21... Qxf2+ {[%clk 0:00:14.4]} 22. Ke4
{[%clk 0:00:05]} 22... Qc2+ {[%clk 0:00:15.1]} 23. Kf3 {[%clk 0:00:04.8]} 23...
Rf2+ {[%clk 0:00:05.1]} 24. Kg3 {[%clk 0:00:05]} 24... Nc6 {[%clk 0:00:02.1]}
25. Rd1+ {[%clk 0:00:04.2]} 25... Kc7 {[%clk 0:00:02.7]} 26. Rd7+ {[%clk
0:00:03.9]} 26... Kb6 {[%clk 0:00:03.2]} 27. Nd5+ {[%clk 0:00:02.8]} 27... Ka5
{[%clk 0:00:02.2]} 28. Rxb7 {[%clk 0:00:02.7]} 28... Rg2+ {[%clk 0:00:02.1]} 29.
Kf3 {[%clk 0:00:02.1]} 29... Qf2+ {[%clk 0:00:01.9]} 30. Ke4 {[%clk 0:00:02]}
30... Qc2+ {[%clk 0:00:02.3]} 31. Kf3 {[%clk 0:00:02.2]} 31... Rf8+ {[%clk
0:00:03]} 32. Bf7 {[%clk 0:00:01.7]} 32... Qf2+ {[%clk 0:00:02.9]} 33. Ke4
{[%clk 0:00:02.1]} 33... Qc2+ {[%clk 0:00:03.4]} 34. Kf3 {[%clk 0:00:02.3]}
34... e4+ {[%clk 0:00:01.2]} 35. Kf4 {[%clk 0:00:02.2]} 35... Qf2+ {[%clk
0:00:01.4]} 36. Kxe4 {[%clk 0:00:02.6]} 36... Qc2+ {[%clk 0:00:01.6]} 37. Kf3
{[%clk 0:00:03]} 37... Rf2+ {[%clk 0:00:01.8]} 38. Kg3 {[%clk 0:00:03.2]} 38...
Rg2+ {[%clk 0:00:02]} 39. Kf3 {[%clk 0:00:03.7]} 39... Qe2+ {[%clk 0:00:02.6]}
40. Ke4 {[%clk 0:00:03.7]} 40... Qg4+ {[%clk 0:00:03.3]} 41. Nf4 {[%clk
0:00:02.6]} 41... Qxe6+ {[%clk 0:00:02.5]} 42. Nxe6 {[%clk 0:00:01.9]} 42...
Rxf7 {[%clk 0:00:02.1]} 43. Kd5 {[%clk 0:00:02.8]} 43... Rxb7 {[%clk 0:00:01.7]}
44. Nc5 {[%clk 0:00:02.4]} 44... Nb4+ {[%clk 0:00:01.4]} 45. Kxc4 {[%clk
0:00:02.1]} 45... Rb6 {[%clk 0:00:02.3]} 46. Nb3+ {[%clk 0:00:02.3]} 46... Kxa4
{[%clk 0:00:03.2]} 47. Nc5+ {[%clk 0:00:02.9]} 47... Ka3 {[%clk 0:00:04.1]} 48.
Kc3 {[%clk 0:00:02.9]} 48... Rc2+ {[%clk 0:00:05]} 49. Kd4 {[%clk 0:00:03]}
49... Rxc5 {[%clk 0:00:05.9]} 50. Kxc5 {[%clk 0:00:03.2]} 50... Na6+ {[%clk
0:00:06.8]} 51. Kd4 {[%clk 0:00:03.1]} 51... Rh6 {[%clk 0:00:07.7]} 0-1

[Event "Early-Titled-Tuesday-Blitz-May-28-2024"]
[Site "Chess.com"]
[Date "2024.05.28"]
[Round "1"]
[White "chessdjw"]
[Black "DeyanKostov"]
[Result "1-0"]
[WhiteElo "2806"]
[BlackElo "2455"]
[TimeControl "180+1"]
[EndTime "8:08:00 PDT"]
[Termination "chessdjw won by resignation"]

1. e4 {[%clk 0:03:00.9]} 1... c5 {[%clk 0:02:59.9]} 2. Nf3 {[%clk 0:03:00.7]}
2... e6 {[%clk 0:03:00.1]} 3. d4 {[%clk 0:02:59.9]} 3... cxd4 {[%clk 0:03:00]}
4. Nxd4 {[%clk 0:03:00.7]} 4... Nc6 {[%clk 0:03:00.5]} 5. Nc3 {[%clk 0:02:59.1]}
5... Qc7 {[%clk 0:03:00.1]} 6. Ncb5 {[%clk 0:02:58.1]} 6... Qb8 {[%clk
0:02:58.4]} 7. Bd3 {[%clk 0:02:58.2]} 7... a6 {[%clk 0:02:57.8]} 8. Nxc6 {[%clk
0:02:58.3]} 8... bxc6 {[%clk 0:02:57.5]} 9. Nd4 {[%clk 0:02:58.3]} 9... c5
{[%clk 0:02:55]} 10. Nf3 {[%clk 0:02:56.9]} 10... Bd6 {[%clk 0:02:46.6]} 11. b3
{[%clk 0:02:52.7]} 11... Ne7 {[%clk 0:02:46.1]} 12. Bb2 {[%clk 0:02:51.8]} 12...
f6 {[%clk 0:02:41.6]} 13. e5 {[%clk 0:02:16.4]} 13... fxe5 {[%clk 0:02:37.5]}
14. Nxe5 {[%clk 0:02:16.5]} 14... O-O {[%clk 0:02:03.7]} 15. Qh5 {[%clk
0:02:14.5]} 15... Nf5 {[%clk 0:02:00]} 16. f4 {[%clk 0:02:11.2]} 16... Bxe5
{[%clk 0:01:44.3]} 17. Bxe5 {[%clk 0:02:06.7]} 17... d6 {[%clk 0:01:44.1]} 18.
Bc3 {[%clk 0:02:00]} 18... Bd7 {[%clk 0:01:35.3]} 19. g4 {[%clk 0:01:53.5]}
19... g6 {[%clk 0:01:30.3]} 20. Qg5 {[%clk 0:01:50.1]} 20... Nd4 {[%clk
0:01:26.1]} 21. O-O {[%clk 0:01:32.1]} 21... Qd8 {[%clk 0:01:20]} 22. Qxd8
{[%clk 0:01:24.5]} 22... Rfxd8 {[%clk 0:01:13]} 23. Kg2 {[%clk 0:01:19.7]} 23...
Bc6+ {[%clk 0:01:10.9]} 24. Kg3 {[%clk 0:01:20.1]} 24... Rf8 {[%clk 0:01:00.5]}
25. Rae1 {[%clk 0:01:18.6]} 25... e5 {[%clk 0:00:47]} 26. fxe5 {[%clk
0:01:06.2]} 26... Rxf1 {[%clk 0:00:46.7]} 27. Rxf1 {[%clk 0:00:55.1]} 27... dxe5
{[%clk 0:00:46.3]} 28. Bc4+ {[%clk 0:00:55.4]} 28... Kh8 {[%clk 0:00:42.8]} 29.
Rf7 {[%clk 0:00:42.2]} 29... Rd8 {[%clk 0:00:26.7]} 30. Bxa6 {[%clk 0:00:27.7]}
30... Ra8 {[%clk 0:00:21.1]} 31. Bc4 {[%clk 0:00:27.7]} 31... Rxa2 {[%clk
0:00:13.6]} 32. Bd2 {[%clk 0:00:27.5]} 32... Rxc2 {[%clk 0:00:07.8]} 33. Rf8+
{[%clk 0:00:24.6]} 33... Kg7 {[%clk 0:00:08]} 34. Rf7+ {[%clk 0:00:20.3]} 34...
Kh8 {[%clk 0:00:07.6]} 35. Bh6 {[%clk 0:00:11.4]} 35... Rc3+ {[%clk 0:00:07.5]}
36. Kf2 {[%clk 0:00:09.8]} 36... Rf3+ {[%clk 0:00:07.8]} 37. Rxf3 {[%clk
0:00:09.6]} 37... Nxf3 {[%clk 0:00:06.9]} 38. Bf8 {[%clk 0:00:06.8]} 38... Nxh2
{[%clk 0:00:05.1]} 39. Kg3 {[%clk 0:00:06.9]} 39... Nf3 {[%clk 0:00:05.6]} 40.
Bxc5 {[%clk 0:00:07]} 40... Kg7 {[%clk 0:00:05.8]} 41. b4 {[%clk 0:00:07]} 41...
Nd4 {[%clk 0:00:05.1]} 42. g5 {[%clk 0:00:06.9]} 42... h6 {[%clk 0:00:03.9]} 43.
Bd6 {[%clk 0:00:06.3]} 43... e4 {[%clk 0:00:02]} 44. Be5+ {[%clk 0:00:06.4]}
44... Kh7 {[%clk 0:00:02.5]} 45. Bxd4 {[%clk 0:00:06.9]} 45... hxg5 {[%clk
0:00:03.4]} 46. b5 {[%clk 0:00:07]} 46... Bb7 {[%clk 0:00:03.4]} 47. b6 {[%clk
0:00:07.6]} 47... Kh6 {[%clk 0:00:03.5]} 48. Be6 {[%clk 0:00:06.9]} 48... g4
{[%clk 0:00:04.4]} 49. Kxg4 {[%clk 0:00:06.8]} 49... g5 {[%clk 0:00:05]} 50. Bf5
{[%clk 0:00:06.5]} 50... Bc6 {[%clk 0:00:04.4]} 51. Be3 {[%clk 0:00:06.3]} 1-0